Cogmind - Beta 10.1 @@@ ROGUE MODE // 2020.09.20 @ 21:14:35 Player: MegitoPrime Result: Destroyed by G-34 Mercenary with Small Laser Performance ------------- Evolutions (0) 0 Regions Visited (1) 200 Robots Destroyed (7) 35 Value Destroyed (122) 122 Prototype IDs (0) 0 Alien Tech Used (0) 0 Bonus (0) 0 TOTAL SCORE: 357 Bonus ------- None Cogmind --------- Core Integrity 0/250 Matter 187/300 Energy 115/250 System Corruption 0% Temperature Cool (199) Movement Core (400) Ox7 Location -10/Materials Parts ------- > --- POWER (1) -------- Ion Engine > --- PROPULSION (2) --- (None) > --- UTILITY (2) ------ Large Storage Unit > --- WEAPON (2) ------- Light Assault Rifle > --- INVENTORY (10) --- Ion Engine Light Ion Engine Light Treads Light Treads Targeting Computer Light Assault Rifle Peak State ------------ > --- POWER ------------ Light Nuclear Core > --- PROPULSION ------- Aluminum Leg Aluminum Leg > --- UTILITY ---------- Large Storage Unit Light Armor Plating > --- WEAPON ----------- Small Laser Assault Rifle > --- INVENTORY -------- Ion Engine Ion Engine Light Ion Engine Light Ion Engine Light Treads Light Treads Light Armor Plating Light Assault Rifle Light Assault Rifle Mining Laser [Rating: 10] Favorites ----------- Power Ion Engine Engine Ion Engine Power Core Light Nuclear Core Propulsion Aluminum Leg Leg Aluminum Leg Utility Light Armor Plating Storage Large Storage Unit Protection Light Armor Plating Weapon Assault Rifle Energy Gun Small Laser Ballistic Gun Assault Rifle Special Weapon Mining Laser Build | -11 -10 ------- Run | Scr Mat Slots Evolved . | . . Power . | . . Propulsion . | . . Utility . | . . Weapon . | . . Parts Attached 17 | 6 11 Power 3 | 1 2 Engine 2 | 1 1 Core 1 | . 1 Reactor . | . . Propulsion 2 | 2 . Treads . | . . Leg 2 | 2 . Wheel . | . . Hover . | . . Flight . | . . Utility 6 | 1 5 Device . | . . Storage 3 | 1 2 Processor . | . . Hackware . | . . Protection 3 | . 3 Artifact . | . . Weapon 6 | 2 4 Energy Gun 2 | 1 1 Energy Cannon . | . . Ballistic Gun 3 | 1 2 Ballistic Cannon . | . . Launcher . | . . Special Weapon 1 | . 1 Impact Weapon . | . . Slashing Weapon . | . . Piercing Weapon . | . . Special Melee Weapon . | . . Unidentified Prototypes . | . . Parts Lost 8 | . 8 Power 1 | . 1 Propulsion 2 | . 2 Utility 2 | . 2 Weapon 3 | . 3 Highest Loss Streak 8 | . 8 Average Slot Usage (%) 98 | . 98 Engine 8 | . 8 Core 5 | . 5 Leg 27 | . 27 Storage 14 | . 14 Protection 12 | . 12 Energy Gun 10 | . 10 Ballistic Gun 17 | . 17 Naked Turns . | . . Heaviest Build 27 | 12 27 Greatest Support 20 | 20 20 Greatest Overweight (x) 1 | . 1 Average Overweight (x) . | . . Largest Inventory Capacity 10 | 6 10 Average Capacity 8 | 5 9 Most Carried 10 | 6 10 Average Carried 7 | 2 8 Final Capacity 10 | 6 10 Final Carried 6 | 6 6 Class Distribution -------------------- 100% | Mutant Dominant Class ---------------- Mutant | -10/Materials Resources | -11 -10 ----------- Run | Scr Mat Matter Collected 352 | 153 199 Remotely . | . . Salvage Created 171 | . 171 Parts 11 | . 11 Haulers Intercepted . | . . Recyclers Shooed 1 | . 1 Parts Field Recycled . | . . Retrieved Matter . | . . Parts Self-Destructed . | . . Prevented . | . . Kills | -11 -10 ------- Run | Scr Mat Combat Hostiles Destroyed 6 | . 6 Guns 6 | . 6 Classes Destroyed 3 | . 3 Worker 1 | . 1 Swarmer 4 | . 4 Grunt 2 | . 2 Best Kill Streak 3 | . 3 Combat Bots Only 3 | . 3 Max Kills in Single Turn 1 | . 1 Gunslinging . | . . Exploded . | . . Melee . | . . Uniques/NPCs Destroyed . | . . Combat | -11 -10 -------- Run | Scr Mat Damage Taken 1100 | . 1100 Core 250 | . 250 Absorbed by Shields . | . . Core Remaining (%) 100 | 100 . Volleys Fired 45 | . 45 Largest 2 | . 2 Hottest 120 | . 120 Shots Fired 86 | . 86 Gun 83 | . 83 Cannon . | . . Launcher . | . . Special 3 | . 3 Kinetic 65 | . 65 Thermal 21 | . 21 Explosive . | . . Electromagnetic . | . . Robot Hit Streak 6 | . 6 Robot Miss Streak 4 | . 4 Penetration Max . | . . Secondary Targets . | . . Shots Hit Robots 46 | . 46 Core Hits 12 | . 12 Critical Hits . | . . Critical Kills . | . . Critical Parts Destroyed . | . . Melee Attacks . | . . Impact . | . . Slashing . | . . Piercing . | . . Sneak Attacks . | . . Combat Hostiles . | . . Follow-up Attacks . | . . Damage Inflicted 502 | . 502 Guns 454 | . 454 Cannons . | . . Explosions . | . . Melee . | . . Ramming . | . . Kinetic 360 | . 360 Thermal 142 | . 142 Explosive . | . . Electromagnetic . | . . Impact . | . . Slashing . | . . Piercing . | . . Highest Corruption . | . . Average Corruption . | . . Corruption Purged . | . . Overload Shots . | . . Overflow Damage . | . . Projectiles . | . . Explosions . | . . Melee . | . . Knockbacks . | . . Impact . | . . Kinetic . | . . Secondary . | . . Self-Inflicted Damage . | . . Shots . | . . Rammed . | . . Targets Rammed . | . . Kicked . | . . Crushed . | . . Highest Temperature 198 | . 198 Average Temperature 50 | . 50 Received Heat Transfer 474 | . 474 Siege Activations . | . . Robots Corrupted . | . . Combat Hostiles . | . . Parts Fried . | . . Impact Corruptions . | . . Robots Melted . | . . Combat Hostiles . | . . Parts Melted . | . . Heat Transferred 325 | . 325 Parts Sabotaged . | . . Parts Stolen . | . . Parts Stripped . | . . Power Chain Reactions . | . . Missiles Intercepted . | . . Alert | -11 -10 ------- Run | Scr Mat Peak Influence 105 | . 105 Initial . | . . Average 28 | . 30 Maximum Alert Level . | . . Low Security (%) 100 | 100 100 Level 1 . | . . Level 2 . | . . Level 3 . | . . Level 4 . | . . Level 5 . | . . High Security . | . . Max Security . | . . Squads Dispatched 3 | . 3 Investigation 1 | . 1 Extermination . | . . Reinforcement 2 | . 2 Assault . | . . Garrison . | . . Intercept . | . . Construction Impeded . | . . Haulers Reinforced . | . . Stealth | -11 -10 --------- Run | Scr Mat Distress Signals 1 | . 1 Communications Jammed . | . . Distress Signals . | . . Times Spotted 23 | . 23 Peak Tracking Total 5 | . 5 Tactical Retreats 1 | . 1 Traps | -11 -10 ------- Run | Scr Mat Traps Triggered 1 | . 1 Indirectly . | . . Trap Hack Attempts . | . . Triggered . | . . Disarmed . | . . Reprogrammed . | . . Reused . | . . Traps Extracted . | . . Installed . | . . Triggered . | . . Machines | -11 -10 ---------- Run | Scr Mat Machines Disabled . | . . Max in Single Turn . | . . Machines Sabotaged . | . . Garrisons Compromised . | . . Overloaded Fab Kills . | . . Fab Network Shutdowns . | . . Hacking | -11 -10 --------- Run | Scr Mat Machines Accessed 1 | . 1 Terminals . | . . Fabricators . | . . Repair Stations . | . . Recycling Units 1 | . 1 Scanalyzers . | . . Garrison Access . | . . Total Hacks 1 | . 1 Successful 1 | . 1 Failed . | . . Catastrophic . | . . Database Lockouts . | . . Manual . | . . Terminals . | . . Fabricators . | . . Repair Stations . | . . Recycling Units 1 | . 1 Scanalyzers . | . . Garrison Access . | . . Terminal Hacks . | . . Fabricator Hacks . | . . Repair Station Hacks . | . . Recycling Unit Hacks 1 | . 1 Retrieve Components 1 | . 1 Scanalyzer . | . . Garrison Access Hacks . | . . Unauthorized Hacks . | . . Terminals . | . . Fabricators . | . . Repair Stations . | . . Recycling Units . | . . Scanalyzers . | . . Garrison Access . | . . Data Cores Recovered . | . . Used . | . . Hacking Detections . | . . Full Trace Events . | . . Feedback Events . | . . Feedback Blocked . | . . Robot Schematics Acquired . | . . Robots Built . | . . Matter . | . . Time . | . . Total Robot Build Rating . | . . Part Schematics Acquired . | . . Parts Built . | . . Matter . | . . Time . | . . Total Part Build Rating . | . . Parts Repaired . | . . Time . | . . Parts Recycled . | . . Recycled Matter . | . . Retrieved Matter . | . . Retrieved Components 6 | . 6 Parts Scanalyzed . | . . Part Schematics Acquired . | . . Parts Damaged . | . . Bothacking | -11 -10 ------------ Run | Scr Mat Used RIF Installer . | . . Robots Hacked . | . . Non-combat . | . . Combat . | . . Robot Hacks Applied . | . . Relay Couplers Released . | . . Robots Rewired . | . . Allies Hacked . | . . Hacks Repelled . | . . Allies | -11 -10 -------- Run | Scr Mat Total Allies . | . . Largest Group . | . . Highest-Rated Group . | . . Highest-Rated Ally . | . . Total Orders . | . . Ally Attacks . | . . Total Damage . | . . Kills . | . . Allies Corrupted . | . . Allies Melted . | . . Intel | -11 -10 ------- Run | Scr Mat Robot Analysis Total . | . . Derelict Logs Recovered . | . . Drone Launches . | . . Drone Recoveries . | . . Exploration | -11 -10 ------------- Run | Scr Mat Turns Passed 896 | 67 829 Spaces Moved 505 | 44 461 Core 4 | 4 . Treads . | . . Legs 501 | 40 461 Wheels . | . . Hover . | . . Flight . | . . Fastest Speed 50 | 50 120 Average Speed 138 | 113 140 Slowest Speed 150 | 120 150 Overloaded Moves . | . . Propulsion Burnouts . | . . Robots Hopped . | . . Cave-ins Triggered . | . . Exploration Rate (%) 30 | 4 56 Regions Visited 1 Branch Regions . Pre-discovered Areas . | . . Known Exits Taken . | . . Unknown Exits Taken 1 | 1 . Scrap Searched . | . . Spaces Dug . | . . Terrain Destroyed 1 | . 1 Melee . | . . Projectile 1 | . 1 AOE . | . . Terrain Rammed . | . . Walls Destroyed . | . . Machines Disabled . | . . Actions | -11 -10 --------- Run | Scr Mat Total 618 | 61 557 Wait 23 | . 23 Move 504 | 43 461 Hop . | . . Pick Up 21 | 12 9 Fast Attach 3 | . 3 Attach 10 | 6 4 Detach . | . . Swap 4 | . 4 Drop 8 | . 8 Fire 45 | . 45 Melee . | . . Ram . | . . Kick . | . . Crush . | . . Escape Stasis . | . . Rewire . | . . Trap . | . . Miscellaneous . | . . Route ------- -11/Scrapyard -10/Materials (discovered 1 exit: [*Mat]) History --------- Turn | Location | Event 3 | -11/Scrapyard | Discovered new exit (range 15) 68 | -11/Scrapyard | Entered Materials 309 | -10/Materials | Build established: Mutant 616 | -10/Materials | Discovered new exit (range 13) 869 | -10/Materials | Core integrity fell below 50% 895 | -10/Materials | Core integrity fell below 20% 897 | -10/Materials | Destroyed by G-34 Mercenary with Small Laser Last Messages --------------- 00760_ O-16 Technician: "IFF HANDSHAKE FAILED. SECURING TERMINAL." 00769_ ALERT: Hostiles spotted, dispatching reinforcements to Terminal M005. 00770_ Triggered Alarm Trap. 00770_ An alarm sounds. 00770_ ALERT: Alarm triggered, dispatching investigation squad. 00776_ ALERT: Hostiles spotted, dispatching reinforcements to Terminal M008. 00782_ U-05 Engineer lays Concrete. 00794_ Destroyed Flight Unit. 00806_ S-10 Pest destroyed. 00809_ Acquired 16 matter. 00847_ Assault Rifle destroyed. 00859_ Sml. Laser destroyed. 00863_ Lgt. Nuclear Core destroyed. 00865_ Lgt. Armor Plating destroyed. 00885_ Aluminum Leg destroyed. 00887_ Lgt. Armor Plating destroyed. 00888_ Aluminum Leg destroyed. 00892_ Mining Laser destroyed. 00897_ U-05 Engineer builds a Wall. [Achievement: First Step to Greatness] Map ----- +----------------------------------------------------+ | | | | | | | ????????????????????????????????????????????????? | | ????????????????????????????????????????????????? | | ????????????????????????????????????????????????? | | ????????????????????????????????????????????????? | | ????????????????????????????????????????????????? | | ????????????????????????????????????????????????? | | ????????????????????????????????????????????????? | | ????????????????????????????????????????????????? | | ????????????????????????????????????????????????? | | ????????????????????? ????????????????????????? | | ???????????????????? ????????????????????????? | | ???????????????????? ????????????????????????? | | ???????????????????? ????????????????????????? | | ????????????????????# #???????????????????????? | | ????????????????????# #???????????????????????? | | ????????????????????# #???????????????????????? | | ????????????????????# #???????????????????????? | | ????????????????????# #???????????????????????? | | ????????????????????# #???????????????????????? | | ????????????????????# ########????????????????? | | ????????????????????# # """ #????????????????? | | ????????????????????# # """ #????????????????? | | ????????????????????# #@""" #????????????????? | | ????????????????????# gg #????????????????? | | ????????????????????#u w# #????????????????? | | ????????????????????# u # #????????????????? | | ????????????????????# ########??????????######? | | ????????????????????# ################### #? | | """?????????????????# # / * #? | | """?????????????????# # [ ##### #? | | """?????????????????# + !! #???# #? | | """?????????????????# # !! "T" #???# #? | | ?????????????????# # #???# #? | | ????###+###?????## ##############???# #? | | #+###### ####### #???????????????# #? | | # #???????????????# #? | | # T #???????????????# #? | | #???????????????# #? | | # ###### ####### #???????????????# #? | | #+####### ##############???????????????# #? | | # # #?????????????????? #? | | # # #?????????????????? #? | | """ """ + + #?????????????????? #? | | """ """ # # #?????????????????? #? | | """!""" # # ! #?????????????????? #? | | != ! # # !! #?????????????????? "? | | "Y" # # !! #?????????????????? "T" T? | +----------------------------------------------------+ Best States ------------- Heat Dissipation 25 Energy Generation 14 Energy Capacity 250 Matter Stores 213 Matter Capacity 350 Sight Range 16 Terrain Scan Density 10 Armor Coverage 150 Evasion (%) 40 Item Schematics ----------------- None Robot Schematics ------------------ None Fabricated ------------ Nothing Alien Tech Used ----------------- None Achievements -------------- First Step to Greatness Challenges ------------ None Game ------ Seed NuclearAnalysisWand Manual? 0 Play Time 00:25:12 Cumulative 27.8 hours Start 2020.09.20 @ 20:51:44 End 2020.09.20 @ 21:14:35 Sessions 1 Manual Loads 0 Difficulty Rogue Special Mode None Game No. 15 Rogue 15 Adventurer 0 Explorer 0 Win Type - Total 0 Types 0/0/0/0/0/0/0/0/0 Lore% 1 Gallery% 7 Achievement% 3 Wizard Run 0 Options --------- ASCII 0 Keyboard 0 Movement Mouse Keybinds 0 Fullscreen 2 Font 18/SmallcapsGlow Map View 83x50 Tactical HUD 1 Map Filters NONE Filters NONE Steam 1 RUN: 3c8ca051-783a-40c0-b544-cbd7f40847aa